[Event "FIDE Womens Grand Swiss 2021"]
[Site "Riga"]
[Date "2021.11.06"]
[Round "10.18"]
[White "Socko, Monika"]
[Black "Milliet, Sophie"]
[Result "1-0"]
[ECO "A70"]
[WhiteElo "2397"]
[BlackElo "2410"]
[Annotator "NA"]
[PlyCount "113"]
[EventDate "2021.10.27"]
[EventType "swiss"]
[EventCountry "LAT"]
[Tiebreak "Cut1 Buchholz+Sonneborn-Berger (Swiss)"]
[SourceTitle "playchess.com"]
[Source "ChessBase"]
[SourceQuality "1"]
[TimeControl "40/6000+30:20/3000+30:900+30"]

1. d4 {[%emt 0:10:02]} Nf6 {[%emt 0:10:06]} 2. c4 {[%emt 0:00:04]} e6 {[%emt 0:
00:03]} 3. Nf3 {[%emt 0:00:04]} c5 {[%emt 0:00:11]} 4. d5 {[%emt 0:00:05]} d6
$16 {[%emt 0:00:03]} 5. Nc3 {[%emt 0:01:49]} exd5 {[%emt 0:00:04]} 6. cxd5 {
[%emt 0:00:05]} g6 {[%emt 0:00:03]} 7. h3 {[%emt 0:00:31]} Bg7 {[%emt 0:00:08]}
8. e4 {[%emt 0:01:45]} O-O {[%emt 0:00:30]} 9. Bd3 {[%emt 0:00:30]} b5 {
[%emt 0:00:00]} 10. Nxb5 {[%emt 0:00:50]} Re8 {[%emt 0:00:00]} 11. O-O {
[%emt 0:05:23]} Nxe4 {[%emt 0:00:06]} 12. Bxe4 {[%emt 0:00:40]} Rxe4 {[%emt 0:
00:05]} 13. Nc3 {[%emt 0:00:13]} Re7 {[%emt 0:04:25]} 14. Bg5 {[%emt 0:01:38]}
f6 {[%emt 0:00:10]} 15. Bf4 {[%emt 0:01:23]} Rb7 {[%emt 0:32:52]} 16. Re1 {
[%emt 0:10:25]} Na6 {[%emt 0:03:13]} 17. Ne4 {[%emt 0:15:33]} Bf8 {[%emt 0:00:
30]} 18. Nfd2 {[%emt 0:00:30]} Rb4 {[%emt 0:00:30]} 19. a3 {[%emt 0:00:30]} Rd4
{[%emt 0:00:30]} 20. Be3 {[%emt 0:00:30]} Rxd5 {[%emt 0:00:30]} 21. Qf3 {
[%emt 0:00:30]} Rf5 {[%emt 0:00:30]} 22. Nxf6+ {[%emt 0:00:30]} Rxf6 {[%emt 0:
00:30]} 23. Qxa8 {[%emt 0:00:30]} Rf7 {[%emt 0:00:30]} 24. Ne4 {[%emt 0:00:30]}
Nc7 {[%emt 0:00:30]} 25. Bg5 {[%emt 0:00:30]} Qd7 {[%emt 0:00:30]} 26. Qb8 {
[%emt 0:00:30]} Ne8 {[%emt 0:00:30]} 27. Rad1 {[%emt 0:00:30]} Qc6 {[%emt 0:00:
30]} 28. Qb3 {[%emt 0:00:30]} Bb7 {[%emt 0:00:30]} 29. Qg3 {[%emt 0:00:30]} d5
{[%emt 0:00:30]} 30. Nc3 {[%emt 0:00:30]} Nc7 {[%emt 0:51:52]} 31. Bf4 {
[%emt 0:44:44]} Ne6 {[%emt 0:01:04]} 32. Be5 {[%emt 0:00:39]} d4 {[%emt 0:03:
34]} 33. Ne4 {[%emt 0:00:18]} Be7 {[%emt 0:00:03]} 34. f3 {[%emt 0:01:52]} Ng7
{[%emt 0:01:14]} 35. Bxg7 {[%emt 0:00:29]} Kxg7 {[%emt 0:00:01]} 36. Qe5+ {
[%emt 0:00:17]} Kg8 {[%emt 0:01:15]} 37. Ng5 {[%emt 0:06:53]} Bf6 {[%emt 0:00:
02]} 38. Qe8+ {[%emt 0:00:25]} Rf8 {[%emt 0:00:03]} 39. Qxc6 {[%emt 0:00:20]}
Bxc6 {[%emt 0:00:05]} 40. Ne6 {[%emt 0:00:30]} Rc8 {[%emt 0:00:55]} 41. Nxc5 {
[%emt 0:50:30]} Bxf3 {[%emt 0:26:50]} 42. Rc1 {[%emt 0:00:00]} Bd5 {[%emt 0:00:
30]} 43. Nd7 {[%emt 0:00:00]} Rxc1 {[%emt 0:00:30]} 44. Nxf6+ {[%emt 0:00:00]}
Kf7 {[%emt 0:00:30]} 45. Rxc1 {[%emt 0:00:00]} Kxf6 {[%emt 0:00:30]} 46. Rc7 {
[%emt 0:00:00]} h5 {[%emt 0:00:30]} 47. Rxa7 {[%emt 0:00:00]} d3 {[%emt 0:00:
30]} 48. Kf2 {[%emt 0:00:00]} d2 {[%emt 0:00:30]} 49. Ke2 {[%emt 0:00:00]} h4 {
[%emt 0:00:30]} 50. Ra6+ {[%emt 0:00:00]} Kf7 {[%emt 0:00:30]} 51. Kxd2 {
[%emt 0:00:00]} Bxg2 {[%emt 0:00:30]} 52. Ra4 {[%emt 0:00:00]} g5 {[%emt 0:00:
30]} 53. Rg4 Bxh3 {[%emt 0:08:17]} 54. Rxg5 {[%emt 0:00:00]} Be6 {[%emt 0:00:
31]} 55. Ke3 {[%emt 0:00:00]} h3 {[%emt 0:00:18]} 56. Kf4 {[%emt 0:00:00]} Kf6
{[%emt 0:00:56]} 57. Rh5 {[%emt 0:00:00]} 1-0

[Event "FIDE Womens Grand Swiss 2021"]
[Site "Riga"]
[Date "2021.11.06"]
[Round "10.19"]
[White "Cyfka, Karina"]
[Black "Houska, Jovanka"]
[Result "1/2-1/2"]
[ECO "B11"]
[WhiteElo "2409"]
[BlackElo "2381"]
[Annotator "NA"]
[PlyCount "63"]
[EventDate "2021.10.27"]
[EventType "swiss"]
[EventCountry "LAT"]
[Tiebreak "Cut1 Buchholz+Sonneborn-Berger (Swiss)"]
[SourceTitle "playchess.com"]
[Source "ChessBase"]
[SourceQuality "1"]
[TimeControl "40/6000+30:20/3000+30:900+30"]

1. e4 {[%emt 0:10:03]} c6 {[%emt 0:10:14]} 2. Nf3 {[%emt 0:00:43]} d5 {[%emt 0:
00:05]} 3. Nc3 {[%emt 0:00:32]} dxe4 {[%emt 0:00:43]} 4. Nxe4 {[%emt 0:00:28]}
Nf6 {[%emt 0:00:05]} 5. Qe2 {[%emt 0:00:24]} Nxe4 {[%emt 0:00:05]} 6. Qxe4 {
[%emt 0:00:04]} Nd7 {[%emt 0:00:05]} 7. Bc4 {[%emt 0:01:01]} Nf6 {[%emt 0:00:
05]} 8. Ne5 {[%emt 0:00:37]} e6 {[%emt 0:00:05]} 9. Qe2 {[%emt 0:00:31]} b5 {
[%emt 0:00:23]} 10. Bb3 {[%emt 0:06:10]} Qc7 {[%emt 0:03:11]} 11. d4 {[%emt 0:
04:03]} Bd6 {[%emt 0:00:21]} 12. Bf4 {[%emt 0:01:24]} O-O {[%emt 0:03:13]} 13.
O-O {[%emt 0:04:50]} a5 {[%emt 0:02:59]} 14. c3 {[%emt 0:09:40]} c5 {[%emt 0:
01:50]} 15. dxc5 {[%emt 0:06:42]} Qxc5 {[%emt 0:02:20]} 16. Rfe1 {[%emt 0:07:
10]} a4 {[%emt 0:15:22]} 17. Bc2 {[%emt 0:02:37]} Bb7 {[%emt 0:03:21]} 18. a3 {
[%emt 0:08:20]} Rad8 {[%emt 0:22:25]} 19. Rad1 {[%emt 0:01:49]} Bb8 {[%emt 0:
02:17]} 20. Rd3 {[%emt 0:13:46]} Rxd3 {[%emt 0:14:30]} 21. Qxd3 {[%emt 0:03:52]
} Qd5 {[%emt 0:01:21]} 22. Qxd5 {[%emt 0:01:55]} Nxd5 {[%emt 0:00:23]} 23. Bc1
{[%emt 0:03:09]} Rd8 {[%emt 0:01:37]} 24. Nd3 {[%emt 0:04:15]} Nb6 {[%emt 0:05:
30]} 25. Nc5 {[%emt 0:00:27]} Bd5 {[%emt 0:00:55]} 26. Nd3 {[%emt 0:02:57]} Bd6
{[%emt 0:05:25]} 27. Nf4 {[%emt 0:01:16]} Bxf4 {[%emt 0:01:01]} 28. Bxf4 {
[%emt 0:00:08]} Nc4 {[%emt 0:00:04]} 29. Bc1 {[%emt 0:01:14]} Kf8 {[%emt 0:02:
13]} 30. f3 {[%emt 0:01:41]} h6 {[%emt 0:01:47]} 31. Kf2 {[%emt 0:00:58]} Ke7 {
[%emt 0:00:33]} 32. Rd1 {[%emt 0:00:58]} 1/2-1/2

[Event "FIDE Womens Grand Swiss 2021"]
[Site "Riga"]
[Date "2021.11.06"]
[Round "10.20"]
[White "Bivol, Alina"]
[Black "Gunina, Valentina"]
[Result "1/2-1/2"]
[ECO "B14"]
[WhiteElo "2392"]
[BlackElo "2462"]
[Annotator "ChessBase"]
[PlyCount "127"]
[EventDate "2021.10.27"]
[EventType "swiss"]
[EventCountry "LAT"]
[Tiebreak "Cut1 Buchholz+Sonneborn-Berger (Swiss)"]
[SourceTitle "playchess.com"]
[Source "ChessBase"]
[SourceQuality "1"]
[TimeControl "40/6000+30:20/3000+30:900+30"]

1. e4 {[%emt 0:10:13]} c6 {[%emt 0:10:05]} 2. d4 {[%emt 0:00:05]} d5 {[%emt 0:
00:04]} 3. exd5 {[%emt 0:00:22]} cxd5 {[%emt 0:00:04]} 4. c4 {[%emt 0:00:04]}
Nf6 {[%emt 0:00:11]} 5. Nc3 {[%emt 0:00:18]} g6 {[%emt 0:00:10]} 6. cxd5 {
[%emt 0:01:42]} Bg7 {[%emt 0:00:08]} 7. Qb3 {[%emt 0:01:45]} O-O {[%emt 0:00:
10]} 8. Bf4 {[%emt 0:04:34]} e6 {[%emt 0:03:34]} 9. Nf3 {[%emt 0:09:59]} exd5 {
[%emt 0:00:45]} 10. Be2 {[%emt 0:00:13]} Nc6 {[%emt 0:00:45]} 11. O-O {[%emt 0:
00:16]} Ne4 {[%emt 0:01:26]} 12. Rad1 {[%emt 0:09:12]} Na5 {[%emt 0:03:44]} 13.
Qa3 {[%emt 0:00:48]} Bg4 {[%emt 0:06:17]} 14. h3 {[%emt 0:05:52]} Bf5 {[%emt 0:
04:34]} 15. Nb5 {[%emt 0:07:19]} Nc4 {[%emt 0:04:20]} 16. Bxc4 {[%emt 0:02:00]}
dxc4 {[%emt 0:00:05]} 17. d5 {[%emt 0:02:38]} Qd7 {[%emt 0:07:35]} 18. Nc7 {
[%emt 0:02:53]} Rac8 {[%emt 0:00:07]} 19. d6 {[%emt 0:00:15]} c3 {[%emt 0:01:
01]} 20. bxc3 {[%emt 0:06:34]} Nxc3 {[%emt 0:00:05]} 21. Rde1 {[%emt 0:03:40]}
Rfd8 {[%emt 0:03:11]} 22. Re7 {[%emt 0:07:08]} Qa4 {[%emt 0:01:13]} 23. Qxa4 {
[%emt 0:01:10]} Nxa4 {[%emt 0:00:01]} 24. Rfe1 {[%emt 0:02:56]} Nc5 {[%emt 0:
06:09]} 25. Bg3 {[%emt 0:03:32]} Nd3 {[%emt 0:01:56]} 26. R1e2 {[%emt 0:04:10]}
Nc1 {[%emt 0:00:41]} 27. R2e3 {[%emt 0:00:37]} Nxa2 {[%emt 0:00:25]} 28. Ng5 {
[%emt 0:03:43]} Rf8 {[%emt 0:03:50]} 29. Ne4 {[%emt 0:04:13]} Nb4 {[%emt 0:01:
08]} 30. Bh4 {[%emt 0:05:31]} Nc6 {[%emt 0:03:34]} 31. Nd5 {[%emt 0:00:30]} Bd4
{[%emt 0:02:43]} 32. Re1 {[%emt 0:02:12]} Kg7 {[%emt 0:10:05]} 33. Rxb7 {
[%emt 0:00:56]} Be5 {[%emt 0:05:16]} 34. Bf6+ {[%emt 0:04:39]} Bxf6 {[%emt 0:
00:12]} 35. Nexf6 {[%emt 0:00:31]} Rcd8 {[%emt 0:01:17]} 36. g4 {[%emt 0:01:44]
} Bc8 {[%emt 0:00:15]} 37. Rc7 {[%emt 0:00:05]} Rxd6 {[%emt 0:00:23]} 38. Ne8+
{[%emt 0:02:43]} Rxe8 {[%emt 0:00:05]} 39. Rxe8 {[%emt 0:00:03]} Bd7 {[%emt 0:
00:17]} 40. Rxd7 {[%emt 0:02:47]} Rxd7 {[%emt 0:00:05]} 41. Ne3 {[%emt 0:50:19]
} Nd4 {[%emt 0:52:36]} 42. Kg2 {[%emt 0:00:00]} Ne6 {[%emt 0:00:00]} 43. Ra8 {
[%emt 0:00:00]} Kf6 {[%emt 0:00:00]} 44. h4 {[%emt 0:00:00]} h6 {[%emt 0:00:00]
} 45. Kf3 {[%emt 0:00:00]} Nd4+ {[%emt 0:00:00]} 46. Kg2 {[%emt 0:00:00]} Nc6 {
[%emt 0:00:00]} 47. Rc8 {[%emt 0:00:00]} Ne7 {[%emt 0:00:00]} 48. Ra8 {[%emt 0:
00:00]} h5 {[%emt 0:00:00]} 49. f3 {[%emt 0:00:00]} Ke5 {[%emt 0:00:00]} 50.
Re8 {[%emt 0:00:00]} hxg4 {[%emt 0:00:00]} 51. fxg4 {[%emt 0:00:00]} Kf4 {
[%emt 0:00:00]} 52. Nc4 {[%emt 0:00:00]} Rc7 {[%emt 0:00:00]} 53. h5 {[%emt 0:
00:00]} gxh5 {[%emt 0:00:00]} 54. gxh5 {[%emt 0:00:00]} Nf5 {[%emt 0:00:00]}
55. Ne5 {[%emt 0:01:32]} Rc2+ {[%emt 0:00:00]} 56. Kg1 {[%emt 0:00:11]} f6 {
[%emt 0:00:00]} 57. Nd3+ {[%emt 0:01:29]} Kg4 {[%emt 0:01:44]} 58. Rg8+ {
[%emt 0:00:20]} Kh4 {[%emt 0:00:43]} 59. Rg6 {[%emt 0:00:29]} Rc3 {[%emt 0:09:
22]} 60. h6 {[%emt 0:01:56]} Nxh6 {[%emt 0:04:39]} 61. Rxh6+ {[%emt 0:15:06]}
Kg5 {[%emt 0:17:32]} 62. Rh3 {[%emt 0:00:12]} Rc2 {[%emt 0:02:08]} 63. Nf2 {
[%emt 0:00:35]} Ra2 {[%emt 0:00:24]} 64. Kg2 {[%emt 0:01:29]} 1/2-1/2

[Event "FIDE Womens Grand Swiss 2021"]
[Site "Riga"]
[Date "2021.11.06"]
[Round "10.21"]
[White "Danielian, Elina"]
[Black "Padmini, Rout"]
[Result "1/2-1/2"]
[ECO "A37"]
[WhiteElo "2450"]
[BlackElo "2380"]
[Annotator "ChessBase"]
[PlyCount "119"]
[EventDate "2021.10.27"]
[EventType "swiss"]
[EventCountry "LAT"]
[Tiebreak "Cut1 Buchholz+Sonneborn-Berger (Swiss)"]
[SourceTitle "playchess.com"]
[Source "ChessBase"]
[SourceQuality "1"]
[TimeControl "40/6000+30:20/3000+30:900+30"]

1. Nf3 {[%emt 0:10:05]} c5 {[%emt 0:11:01]} 2. g3 {[%emt 0:01:19]} Nc6 {
[%emt 0:00:20]} 3. Bg2 {[%emt 0:00:24]} g6 {[%emt 0:00:42]} 4. O-O {[%emt 0:01:
15]} Bg7 {[%emt 0:00:05]} 5. c4 {[%emt 0:01:14]} e5 {[%emt 0:00:18]} 6. Nc3 {
[%emt 0:01:32]} Nge7 {[%emt 0:02:01]} 7. Ne1 {[%emt 0:01:37]} O-O {[%emt 0:00:
15]} 8. Nc2 {[%emt 0:01:44]} d6 {[%emt 0:00:08]} 9. d3 {[%emt 0:00:18]} Be6 {
[%emt 0:01:06]} 10. Ne3 {[%emt 0:00:06]} Qd7 {[%emt 0:00:21]} 11. Ned5 {
[%emt 0:08:34]} Bh3 {[%emt 0:01:53]} 12. Rb1 {[%emt 0:00:56]} Bxg2 {[%emt 0:01:
45]} 13. Kxg2 {[%emt 0:00:01]} Nxd5 {[%emt 0:02:08]} 14. cxd5 {[%emt 0:02:34]}
Nd4 {[%emt 0:01:46]} 15. Bd2 {[%emt 0:13:32]} f5 {[%emt 0:12:08]} 16. e3 {
[%emt 0:05:42]} Nb5 {[%emt 0:01:26]} 17. Ne2 {[%emt 0:07:20]} Nc7 {[%emt 0:07:
32]} 18. e4 {[%emt 0:05:45]} Nb5 {[%emt 0:01:38]} 19. b4 {[%emt 0:11:00]} b6 {
[%emt 0:06:09]} 20. bxc5 {[%emt 0:02:57]} bxc5 {[%emt 0:04:32]} 21. Qa4 {
[%emt 0:02:30]} a6 {[%emt 0:00:35]} 22. Nc3 {[%emt 0:00:51]} fxe4 {[%emt 0:04:
21]} 23. Qxe4 {[%emt 0:05:06]} Rab8 {[%emt 0:08:23]} 24. h3 {[%emt 0:03:04]}
Nd4 {[%emt 0:04:23]} 25. Be3 {[%emt 0:00:47]} Nb5 {[%emt 0:03:43]} 26. Bd2 {
[%emt 0:07:01]} Qf7 {[%emt 0:01:58]} 27. Nd1 {[%emt 0:14:42]} Nc7 {[%emt 0:02:
16]} 28. Rxb8 {[%emt 0:00:05]} Rxb8 {[%emt 0:00:07]} 29. Ne3 {[%emt 0:00:08]}
Bh6 {[%emt 0:06:48]} 30. Ba5 {[%emt 0:00:06]} Ne8 {[%emt 0:02:55]} 31. Ng4 {
[%emt 0:01:52]} Bg7 {[%emt 0:01:36]} 32. Qc4 {[%emt 0:01:05]} h5 {[%emt 0:06:
56]} 33. Ne3 {[%emt 0:00:01]} Bh6 {[%emt 0:00:09]} 34. f4 {[%emt 0:01:23]} exf4
{[%emt 0:02:13]} 35. gxf4 {[%emt 0:00:03]} Rb2+ {[%emt 0:00:19]} 36. Kg1 {
[%emt 0:00:20]} Qe7 {[%emt 0:05:29]} 37. Rf3 {[%emt 0:00:06]} Bg7 {[%emt 0:02:
36]} 38. Bc3 {[%emt 0:01:32]} Rb1+ {[%emt 0:00:44]} 39. Kg2 {[%emt 0:00:49]}
Rc1 {[%emt 0:00:31]} 40. Bf6 {[%emt 0:00:06]} Rxc4 {[%emt 0:01:22]} 41. Bxe7 {
[%emt 0:50:01]} Ra4 {[%emt 0:51:19]} 42. Nc4 {[%emt 0:00:00]} Rxa2+ {[%emt 0:
00:00]} 43. Kf1 {[%emt 0:00:00]} Ra1+ {[%emt 0:00:00]} 44. Kg2 {[%emt 0:00:00]}
Bf8 {[%emt 0:00:00]} 45. Bxf8 {[%emt 0:00:00]} Kxf8 {[%emt 0:00:00]} 46. f5 {
[%emt 0:00:00]} Kf7 {[%emt 0:00:00]} 47. fxg6+ {[%emt 0:00:00]} Kxg6 {[%emt 0:
00:00]} 48. Rf8 {[%emt 0:00:00]} Re1 {[%emt 0:00:00]} 49. Rf2 {[%emt 0:00:00]}
Nc7 {[%emt 0:00:00]} 50. Nxd6 {[%emt 0:00:00]} Nxd5 {[%emt 0:00:00]} 51. Ne4 {
[%emt 0:00:27]} Rc1 {[%emt 0:00:00]} 52. Rf8 {[%emt 0:01:48]} h4 {[%emt 0:01:
47]} 53. Rd8 {[%emt 0:02:07]} Nf4+ {[%emt 0:02:00]} 54. Kf3 {[%emt 0:00:37]}
Rf1+ {[%emt 0:00:44]} 55. Ke3 {[%emt 0:00:38]} Nxh3 {[%emt 0:01:09]} 56. Rg8+ {
[%emt 0:02:01]} Kh5 {[%emt 0:04:05]} 57. Rh8+ {[%emt 0:00:02]} Kg4 {[%emt 0:00:
27]} 58. Rg8+ {[%emt 0:00:02]} Kh5 {[%emt 0:00:14]} 59. Rh8+ {[%emt 0:00:23]}
Kg4 {[%emt 0:00:05]} 60. Rg8+ {[%emt 0:00:06]} 1/2-1/2

[Event "FIDE Womens Grand Swiss 2021"]
[Site "Riga"]
[Date "2021.11.06"]
[Round "10.22"]
[White "Rogule, Laura"]
[Black "Arakhamia-Grant, Ketevan"]
[Result "1/2-1/2"]
[ECO "E69"]
[WhiteElo "2289"]
[BlackElo "2376"]
[Annotator "NA"]
[PlyCount "106"]
[EventDate "2021.10.27"]
[EventType "swiss"]
[EventCountry "LAT"]
[Tiebreak "Cut1 Buchholz+Sonneborn-Berger (Swiss)"]
[SourceTitle "playchess.com"]
[Source "ChessBase"]
[SourceQuality "1"]
[TimeControl "40/6000+30:20/3000+30:900+30"]

1. d4 {[%emt 0:10:04]} Nf6 {[%emt 0:10:20]} 2. c4 {[%emt 0:00:21]} g6 {[%emt 0:
00:06]} 3. g3 {[%emt 0:01:20]} Bg7 {[%emt 0:00:17]} 4. Bg2 {[%emt 0:00:12]} O-O
{[%emt 0:00:08]} 5. Nc3 {[%emt 0:00:56]} d6 {[%emt 0:00:08]} 6. Nf3 {[%emt 0:
00:23]} Nbd7 {[%emt 0:00:08]} 7. O-O {[%emt 0:01:30]} e5 {[%emt 0:00:10]} 8. e4
{[%emt 0:01:16]} c6 {[%emt 0:01:05]} 9. h3 {[%emt 0:02:54]} Re8 {[%emt 0:02:55]
} 10. Be3 {[%emt 0:05:12]} a6 {[%emt 0:05:42]} 11. d5 {[%emt 0:24:23]} cxd5 {
[%emt 0:03:29]} 12. cxd5 {[%emt 0:05:50]} b5 {[%emt 0:00:17]} 13. Nd2 {[%emt 0:
11:09]} Rf8 {[%emt 0:04:18]} 14. b4 {[%emt 0:04:17]} Ne8 {[%emt 0:00:42]} 15.
f3 {[%emt 0:14:03]} f5 {[%emt 0:00:15]} 16. Bf2 {[%emt 0:00:49]} Bh6 {[%emt 0:
19:24]} 17. Nb3 {[%emt 0:00:30]} Qc7 {[%emt 0:05:41]} 18. Qd3 {[%emt 0:01:17]}
Nb6 {[%emt 0:00:10]} 19. Na5 {[%emt 0:09:32]} Bd7 {[%emt 0:10:54]} 20. Nc6 {
[%emt 0:02:47]} Nf6 {[%emt 0:00:41]} 21. a4 {[%emt 0:02:13]} fxe4 {[%emt 0:25:
42]} 22. fxe4 {[%emt 0:01:38]} Nxa4 {[%emt 0:01:54]} 23. Nxa4 {[%emt 0:02:29]}
bxa4 {[%emt 0:00:06]} 24. Qc4 {[%emt 0:04:49]} Qb7 {[%emt 0:02:25]} 25. Rxa4 {
[%emt 0:01:30]} Nh5 {[%emt 0:00:14]} 26. Kh2 {[%emt 0:01:10]} Kg7 {[%emt 0:11:
19]} 27. Qe2 {[%emt 0:00:39]} Bxc6 {[%emt 0:02:00]} 28. dxc6 {[%emt 0:00:04]}
Qxc6 {[%emt 0:00:03]} 29. Rfa1 {[%emt 0:00:25]} Rac8 {[%emt 0:03:41]} 30. Rxa6
{[%emt 0:00:17]} Qc2 {[%emt 0:00:11]} 31. R1a2 {[%emt 0:01:04]} Qxe2 {[%emt 0:
00:56]} 32. Rxe2 {[%emt 0:00:04]} Rb8 {[%emt 0:00:29]} 33. Rb2 {[%emt 0:00:34]}
Bc1 {[%emt 0:00:14]} 34. Rc2 {[%emt 0:00:30]} Rxb4 {[%emt 0:00:26]} 35. Rxd6 {
[%emt 0:00:19]} Rb2 {[%emt 0:00:27]} 36. Rxb2 {[%emt 0:01:07]} Bxb2 {[%emt 0:
00:01]} 37. Bc5 {[%emt 0:00:32]} Rc8 {[%emt 0:00:20]} 38. Rd7+ {[%emt 0:00:35]}
Kg8 {[%emt 0:00:25]} 39. Be3 {[%emt 0:00:29]} Rc3 {[%emt 0:01:08]} 40. Bf2 {
[%emt 0:00:29]} Rc2 {[%emt 0:00:37]} 41. Be3 {[%emt 0:27:38]} Bc3 {[%emt 0:38:
16]} 42. Bh6 {[%emt 0:13:35]} Be1 {[%emt 0:01:02]} 43. Rd3 {[%emt 0:04:30]} Kf7
{[%emt 0:00:50]} 44. h4 {[%emt 0:02:42]} Nf6 {[%emt 0:02:42]} 45. Kh3 {[%emt 0:
00:23]} Rc4 {[%emt 0:00:39]} 46. Bg5 {[%emt 0:01:54]} Ke6 {[%emt 0:06:16]} 47.
Bxf6 {[%emt 0:01:29]} Kxf6 {[%emt 0:00:04]} 48. Rd1 {[%emt 0:00:47]} Bb4 {
[%emt 0:01:37]} 49. Rd3 {[%emt 0:00:53]} Bc5 {[%emt 0:01:13]} 50. Rf3+ {
[%emt 0:00:36]} Ke6 {[%emt 0:00:37]} 51. Rd3 {[%emt 0:00:38]} Rc2 {[%emt 0:00:
32]} 52. Bf3 {[%emt 0:00:35]} Bd4 {[%emt 0:01:29]} 53. Bd1 {[%emt 0:00:27]} Rc3
{[%emt 0:01:09]} 1/2-1/2

[Event "FIDE Womens Grand Swiss 2021"]
[Site "Riga"]
[Date "2021.11.06"]
[Round "10.23"]
[White "Hoang, Thanh Trang"]
[Black "Golsta, Madara"]
[Result "1-0"]
[ECO "A48"]
[WhiteElo "2380"]
[BlackElo "2003"]
[Annotator "NA"]
[PlyCount "73"]
[EventDate "2021.10.27"]
[EventType "swiss"]
[EventCountry "LAT"]
[Tiebreak "Cut1 Buchholz+Sonneborn-Berger (Swiss)"]
[SourceTitle "playchess.com"]
[Source "ChessBase"]
[SourceQuality "1"]
[TimeControl "40/6000+30:20/3000+30:900+30"]

1. d4 {[%emt 0:10:14]} Nf6 {[%emt 0:10:11]} 2. Nf3 {[%emt 0:00:27]} g6 {
[%emt 0:00:24]} 3. Bf4 {[%emt 0:00:30]} Bg7 {[%emt 0:00:16]} 4. e3 {[%emt 0:00:
22]} d6 {[%emt 0:00:50]} 5. h3 {[%emt 0:00:50]} O-O {[%emt 0:00:20]} 6. c3 {
[%emt 0:00:49]} Nbd7 {[%emt 0:01:07]} 7. Be2 {[%emt 0:01:03]} c5 {[%emt 0:00:
28]} 8. O-O {[%emt 0:01:48]} b6 {[%emt 0:00:34]} 9. a4 {[%emt 0:01:07]} Bb7 {
[%emt 0:01:35]} 10. Nbd2 {[%emt 0:02:37]} a6 {[%emt 0:00:46]} 11. Bh2 {[%emt 0:
01:25]} Ra7 {[%emt 0:00:33]} 12. Qb3 {[%emt 0:04:44]} Qa8 {[%emt 0:00:48]} 13.
Rfd1 {[%emt 0:01:25]} Ne4 {[%emt 0:01:07]} 14. Nxe4 {[%emt 0:09:29]} Bxe4 {
[%emt 0:00:33]} 15. Ne1 {[%emt 0:00:44]} Bh6 {[%emt 0:02:42]} 16. d5 {[%emt 0:
11:47]} Nf6 {[%emt 0:04:27]} 17. c4 {[%emt 0:02:37]} b5 {[%emt 0:01:32]} 18.
axb5 {[%emt 0:02:37]} axb5 {[%emt 0:00:49]} 19. Rxa7 {[%emt 0:00:20]} Qxa7 {
[%emt 0:00:08]} 20. cxb5 {[%emt 0:01:03]} Rb8 {[%emt 0:01:28]} 21. Bc4 {
[%emt 0:07:24]} Bf5 {[%emt 0:02:55]} 22. Nc2 {[%emt 0:04:37]} Ne8 {[%emt 0:06:
04]} 23. Na3 {[%emt 0:04:02]} Nc7 {[%emt 0:01:51]} 24. e4 {[%emt 0:05:10]} Bd7
{[%emt 0:08:47]} 25. e5 {[%emt 0:00:25]} Rb6 {[%emt 0:00:15]} 26. Qf3 {[%emt 0:
07:16]} Qb8 {[%emt 0:06:18]} 27. Qe2 {[%emt 0:01:42]} Bf8 {[%emt 0:02:24]} 28.
e6 {[%emt 0:02:43]} fxe6 {[%emt 0:02:46]} 29. dxe6 {[%emt 0:00:29]} Bxb5 {
[%emt 0:02:19]} 30. Bxd6 {[%emt 0:02:24]} Bxc4 {[%emt 0:03:52]} 31. Nxc4 {
[%emt 0:01:07]} Rxd6 {[%emt 0:09:01]} 32. Nxd6 {[%emt 0:00:16]} exd6 {[%emt 0:
00:08]} 33. e7 {[%emt 0:00:27]} d5 {[%emt 0:01:33]} 34. Rxd5 {[%emt 0:04:12]}
Bxe7 {[%emt 0:00:42]} 35. Rd7 {[%emt 0:00:13]} Bf8 {[%emt 0:03:59]} 36. Qc4+ {
[%emt 0:00:11]} Kh8 {[%emt 0:00:54]} 37. Qf7 {[%emt 0:00:08]} 1-0

[Event "FIDE Womens Grand Swiss 2021"]
[Site "Riga"]
[Date "2021.11.06"]
[Round "10.24"]
[White "Lujan, Carolina"]
[Black "Eizaguerri Floris, Maria"]
[Result "1-0"]
[ECO "B46"]
[WhiteElo "2340"]
[BlackElo "2328"]
[Annotator "NA"]
[PlyCount "77"]
[EventDate "2021.10.27"]
[EventType "swiss"]
[EventCountry "LAT"]
[Tiebreak "Cut1 Buchholz+Sonneborn-Berger (Swiss)"]
[SourceTitle "playchess.com"]
[Source "ChessBase"]
[SourceQuality "1"]
[TimeControl "40/6000+30:20/3000+30:900+30"]

1. e4 {[%emt 0:10:05]} c5 {[%emt 0:10:07]} 2. Nf3 {[%emt 0:00:16]} e6 {[%emt 0:
00:06]} 3. d4 {[%emt 0:00:12]} cxd4 {[%emt 0:00:08]} 4. Nxd4 {[%emt 0:00:05]}
Nc6 {[%emt 0:00:06]} 5. Nc3 {[%emt 0:00:15]} a6 {[%emt 0:00:05]} 6. Nxc6 {
[%emt 0:00:26]} bxc6 {[%emt 0:00:07]} 7. Qf3 {[%emt 0:00:08]} d5 {[%emt 0:02:
23]} 8. Qg3 {[%emt 0:00:12]} Nf6 {[%emt 0:14:14]} 9. Be2 {[%emt 0:01:17]} d4 {
[%emt 0:13:05]} 10. e5 {[%emt 0:03:39]} Nd7 {[%emt 0:03:11]} 11. Ne4 {[%emt 0:
16:45]} Qa5+ {[%emt 0:00:42]} 12. c3 {[%emt 0:25:48]} dxc3 {[%emt 0:07:12]} 13.
Nxc3 {[%emt 0:01:58]} Qxe5 {[%emt 0:08:04]} 14. Bf4 {[%emt 0:00:58]} Qa5 {
[%emt 0:01:05]} 15. Bc7 {[%emt 0:05:00]} Qb4 {[%emt 0:09:50]} 16. O-O {[%emt 0:
01:27]} h5 {[%emt 0:07:55]} 17. a3 {[%emt 0:10:26]} h4 {[%emt 0:11:33]} 18. Qf3
{[%emt 0:08:37]} Qb7 {[%emt 0:02:19]} 19. Bf4 {[%emt 0:00:08]} Be7 {[%emt 0:03:
23]} 20. Ne4 {[%emt 0:04:19]} O-O {[%emt 0:03:06]} 21. Rfd1 {[%emt 0:09:24]} e5
{[%emt 0:03:49]} 22. Bd2 {[%emt 0:03:19]} Nf6 {[%emt 0:01:33]} 23. Bc3 {
[%emt 0:00:16]} Qc7 {[%emt 0:01:35]} 24. Bc4 {[%emt 0:03:00]} Bb7 {[%emt 0:02:
52]} 25. Qf5 {[%emt 0:02:09]} Nxe4 {[%emt 0:02:09]} 26. Bxe5 {[%emt 0:00:35]}
Bd6 {[%emt 0:01:55]} 27. Rxd6 {[%emt 0:00:18]} Nxd6 {[%emt 0:00:52]} 28. Qg6 {
[%emt 0:00:06]} Ne8 {[%emt 0:00:09]} 29. Bxc7 {[%emt 0:00:06]} Nxc7 {[%emt 0:
00:05]} 30. Qh5 {[%emt 0:02:37]} Rad8 {[%emt 0:00:21]} 31. Qxh4 {[%emt 0:00:24]
} Rd7 {[%emt 0:00:49]} 32. Re1 {[%emt 0:00:36]} c5 {[%emt 0:00:28]} 33. Qh5 {
[%emt 0:00:48]} Nd5 {[%emt 0:00:19]} 34. h3 {[%emt 0:00:35]} Nf4 {[%emt 0:00:
19]} 35. Qf5 {[%emt 0:00:23]} Ne6 {[%emt 0:01:13]} 36. Bxe6 {[%emt 0:01:04]}
fxe6 {[%emt 0:00:06]} 37. Qxe6+ {[%emt 0:00:03]} Rdf7 {[%emt 0:00:06]} 38. Re5
{[%emt 0:00:42]} Bc8 {[%emt 0:01:19]} 39. Qc4 {[%emt 0:00:05]} 1-0